{"text_format":"1","workbook":"xlsx","n_sheets":7,"sheets":["Damer Elite","Herrer Elite","Damer A","Damer C","Herrer A","Herrer C","Herrer B"],"not_rendered":{"charts":0,"images":0,"macros":0,"external_links":0,"defined_names":0,"comments":0,"pivot_tables":0},"unopened":[],"bounds":{"document_bytes":16777216,"sheet_cells":100000,"rows_first":2000,"rows_last":500,"rows_between":2000,"halvings":0,"cell_chars":16384,"cell_head_chars":4096},"cells_cut":0,"cells_raw":0,"read":"whole","date_system":"1900"}

{"sheet":"Damer Elite","index":0,"n_rows":19,"n_cols":18,"rows_kept":19,"cut":false,"hidden":false,"merged":[]}
["BUFF NC DAMER ELITE "]
[]
["Navn","F.år","Klubb","Team","Sum","Vikersund 30.11","Vikerund 01.12","Lysgårdsbakken 04.01","Lysgårdsbakken 05.01","NC Sprova 1  26.01","NC Sprova 2  26.01","NC Lønnberget 08.02","NC Lønnberget 09.02","Granåsen 15.02","Holmenkollen 01.03.01","Holmenkollen 01.03.02","NM Trysil 12.03","NM Skarbakken 29.03"]
["Karoline Andrea Røstad",1995,"Skogn IL","Trønderhopp",{"$f":"SUM(F4:R4)","v":560},null,null,50,50,100,100,60,60,100,null,null,null,40]
["Anne Odine Strøm",1998,"Alta IF","Hedmarkhopp",490,null,null,100,100,null,null,100,100,null,null,null,45,45]
["Jenny S Hagemoen",1993,"Gausdal Skilag","NTG ",400,null,null,80,80,null,null,80,80,80]
["Line Jahr",1984,"Vikersund IF","Lillehammerhopp",360,100,100,null,null,null,null,null,null,null,null,null,80,80]
["Anikken Mork",1991,"Ready",null,332,60,80,60,60,null,null,null,null,null,null,null,40,32]
["Anette Sagen",1985,"Helfjell IL","Flyingteam Vikersund",280,80,null,null,null,null,null,null,null,null,100,100]
["Maren Lundby",1994,"Kolbukameratene","Lillehammerhopp",200,null,null,null,null,null,null,null,null,null,null,null,100,100]
["Marte Pauline Skinnes",1995,"IL Ivrig","Flying Team Vikersund",153,null,null,40,45,null,null,null,null,null,null,null,32,36]
["Tonje Bakke",1998,"Elverum Hopp","Hedmarkhopp",121,null,null,45,40,null,null,null,null,null,null,null,36]
["Gyda Enger",1993,"Hernes IL","Lillehammerhopp",100,null,null,null,null,null,null,null,null,null,null,null,50,50]
["Maria Beisvåg",1998,"IL Jardar","Kollenhopp",60,null,null,null,null,null,null,null,null,null,null,null,60]
["Helena Olsson Smeby",null,"Byåsen IL"," ",60,null,null,null,null,null,null,null,null,null,null,null,null,60]
["Silje Opseth",1999,"Holeværingen IL","Flying Team Vikersund",29,null,null,null,null,null,null,null,null,null,null,null,29]
["Thea Øihaugen",2001,"Gausdal Skilag",null,26,null,null,null,null,null,null,null,null,null,null,null,26]
["Hanna Midtsundstad",1999,"Vaaler IF","Hedmarkhopp",24,null,null,null,null,null,null,null,null,null,null,null,24]
["Mari Leinan Lund",1999,"Tolga IL","Hedmarkhopp",22,null,null,null,null,null,null,null,null,null,null,null,22]

{"sheet":"Herrer Elite","index":1,"n_rows":57,"n_cols":20,"rows_kept":57,"cut":false,"hidden":false,"merged":[]}
["BUFF NC  HERRER Elite "]
["Navn","F.år","Klubb","Team","Sum","Vikersund 30.11","Vikersund 01.12","Lysgårdsbakken 04.01","Lysgårdsbakken 05.01","Granåsen 11.01","Granåsen 12.01","NM Lysgårdsbakken 21.01"," Sprova 1  26.01"," Sprova 2  26.01"," Lønnberget 08.02"," Lønnberget 09.02","Granåsen 15.02","Holmenkollen 01.03.01","Holmenkollen 01.03.02","NM Skarbakken 29.03"]
["Phillip Sjøen",1995,"Bækkelaget SK","Kollenhopp",{"$f":"SUM(F3:T3)","v":572},null,80,36,32,null,null,20,null,null,80,80,40,100,24,80]
["Daniel Andre Tande",1994,"Kongsberg IF","Flyingteam Vikersund",521,36,100,100,45,null,null,40,null,null,null,null,null,60,100,40]
["Mads Søhagen Berggard",1995,"Ringkollen SK","Flyingteam Vikersund",461,100,45,29,36,null,null,12,null,null,100,45,50,24,20]
["Espen Enger Halvorsen",1990,"Eidsvoll Værk SK","Lillehammerhopp",439,12,13,16,20,40,80,5,36,29,60,60,36,null,null,32]
["Johann Andrè Forfang",1995,"Tromsø Skiklub","Trønderhopp",404,60,32,14,11,80,60,14,null,null,null,null,13,80,40]
["Vegard Swensen",1986,"Asker SK","Lillehammerhopp",392,40,50,26,60,null,null,null,null,null,20,100,null,26,50,20]
["Stian Andrè Skinnes",1991,"Gjerpenkollen hoppkubb","Flyingteam Vikersund",379,45,29,22,14,29,20,null,32,60,50,50,null,13,15]
["Hans Petter Bergquist",1994,"Aurskog/Finstadbru","Kollenhopp",374,24,null,13,13,45,100,15,null,null,45,40,24,22,26,7]
["Robin Pedersen",1996,"Stållameratene IL","Trønderhopp",370,null,null,null,null,100,45,3,29,50,32,24,29,36,18,4]
["Jan Fure",1991,"Vikersund IF","Trønderhopp",365,32,22,15,24,26,32,9,40,32,36,36,22,14,12,13]
["Joachim Hauer",1991,"Bækkelaget SK","Kollenhopp",348,50,80,60,40,null,null,null,null,null,null,null,null,32,60,26]
["Johan Martin Brandt",1987,"Steinkjer Skiklubb","Trønderhopp",340,22,18,32,15,24,29,18,80,45,null,null,15,15,22,5]
["Ole Mattis Sara Nedrejord",1996,"Nordlys IL","NTG",321,null,null,50,26,60,36,22,null,null,40,18,60,null,null,9]
["Bjørn Einar Romøren",1981,"Øvrevoll/Hosle IL","Kollenhopp",311,14,12,8,24,32,null,11,null,null,null,null,80,50,80]
["Tord M Hammer",1988,"Tromsø Skiklub","Trønderhopp",306,15,14,20,10,null,null,null,100,100,null,null,null,18,13,16]
["Jonas Gropen Søgård",1996,"Nordbygda/Løten Ski","NTG",282,null,null,45,18,50,26,8,24,26,26,29,20,null,null,10]
["Espen Røe",1993,"Tolga IL","Trønderhopp",242,29,26,11,16,null,18,null,45,24,24,20,14,null,null,15]
["Robert Johansson",1990,"Søre Ål IL","Lillehammerhopp",241,null,null,80,80,null,null,36,null,null,null,null,null,null,null,45]
["Simen Key Grimsrud",1992,"Asker SK","Kollenhopp",234,20,40,18,100,null,null,null,null,null,null,null,null,40,16]
["Vegard Haukø Sklett",1986,"Grong IL","Trønderhopp",232,16,22,9,9,20,50,null,26,36,22,22]
["Sigurd Nymoen Søberg",1994,"Furnes Skiløperfor.","Lillehammerhopp",214,80,24,12,29,null,null,null,null,null,null,null,26,29,14]
["Klaus Ovlien Engen ",1992,"Aurskog/Finstadbru","Kollenhopp",208,null,null,null,null,null,null,10,60,40,29,32,16,12,null,9]
["Fredrik Bjerkengen",1988,"Kolbukameratene","Lillehammerhopp",198,null,null,40,12,null,null,16,50,80]
["Atle Pedersen Rønsen",1988,"Eidsvold IF","Lillehammerhopp",191,26,40,24,50,null,null,50,null,null,null,null,null,null,null,1]
["Ole Marius Ingvaldsen",1985,"Steinkjer SK","Trønderhopp",163,null,null,null,null,null,null,45,null,null,null,null,100,null,null,18]
["Andreas Stjernen",1988,"Sprova","Trønderhopp",158,null,null,null,null,null,null,26,null,null,null,null,32,null,null,100]
["Anders Bardal",1982,"Steinkjer Skiklubb","Trønderhopp",150,null,null,null,null,null,null,100,null,null,null,null,null,null,null,50]
["Halvor Egner Granerud",1996,"Asker SK","Kollenhopp",141,null,null,null,null,18,22,null,null,null,null,null,null,45,32,24]
["Mathis Rebne Stenseth",1995,"Furnes Skiløperfor.","NTG",131,null,null,null,null,null,null,4,null,null,null,26,45,20,36]
["Kim Rene Elverum Sorsell",1988,"Ullensaker Skikl","Kollenhopp",127,null,null,null,null,36,40,null,null,null,null,null,null,16,29,6]
["Anders Fannemel",1991,"Hornindal IL","Lillehammerhopp",116,null,null,null,null,null,null,80,null,null,null,null,null,null,null,36]
["Tom Hilde",1987,"Asker SK","Kollenhopp",92,null,null,null,null,null,null,32,null,null,null,null,null,null,null,60]
["Rune Velta",1989,"Lommedalen IL","Kollenhopp",{"$f":"SUM(F35:T35)","v":82},null,null,null,null,null,null,60,null,null,null,null,null,null,null,22]
["Jarl Magnus Riiber",1997,"Heming IL","Kollenhopp",79,18,16,null,null,null,null,null,null,null,null,null,null,null,45]
["Joakim Aune",1993,"Byåsen IL","Trønderhopp",60,null,null,null,null,22,24,null,null,null,null,null,null,null,null,14]
["Knut Jokerud Strand",1996,"Vikersund IF","Flyingteam Vikersund",48,13,15,10,8,null,null,null,null,null,null,null,null,null,null,2]
["Andreas Henriksen",null,"Skatval Skilag","Trønderhopp",37,null,null,null,null,null,null,7,null,null,null,null,18,null,null,12]
["Are Sumstad",null,"Sør-Fron IL","NTG",31,null,null,null,null,null,null,2,null,null,null,null,null,null,null,29]
["Anders Jacoben",null,"Ringkollen SK","Flyingteam Vikersund",29,null,null,null,null,null,null,29]
["Peder Nævestad Pedersen"," ","Byåsen Skiklub","Trønderhopp",24,null,null,null,null,null,null,24]
["Sondre Vestøl Bråtane",null,"Songe Skiklubb","Trønderhopp",13,null,null,null,null,null,null,13]
["Jonas Schøyen Øvregård",null,"Vålerenga Ski","Kollenhopp",11,null,null,null,null,null,null,null,null,null,null,null,null,null,null,11]
["Lars Brodshaug Berger",null,"Eidsvoll Værk SK",null,6,null,null,null,null,null,null,6]
["Joacim Ødegård Bjøreng",null,"Røykenhopp","Flyingteam Vikersund",3,null,null,null,null,null,null,null,null,null,null,null,null,null,null,3]
["Rishi Vellupillai",null,"Liabygda IL","NTG",1,null,null,null,null,null,null,1]
["Kenneth Gangnes",1989,"Kolbukameratene","Lillehammerhopp",0]
["Sondre Ringen",null,"Bækkelaget SK","Kollenhopp",0]
["Jonas Sandell",1995,"Tromsø Skiklub","Trønderhopp",0]
["Richard Haukedal",null,"Bækkelaget SK","Kollenhopp",0]
["Bendik Netland Huløen",1996,"Oddersjå SSK","NTG",0]
["Andreas Myhre Hellerud",null,"Magnor UL","Lillehammerhopp",0]
["Alexander Henningsen",null,"Tromsø Skiklub","NTG",0]
["Edvart Myrvang Bakke",null,"Hedalen IL","Flyingteam Vikersund",0]
["Morten Øgar Rastad",1988,"Hurdal IL","Lillehammerhopp",0]
["Leif Marius Hagemoen",1995,"Gausdal SL","NTG",0]

{"sheet":"Damer A","index":2,"n_rows":6,"n_cols":7,"rows_kept":6,"cut":false,"hidden":false,"merged":[]}
["BUFF NC  DAMER A ",null,null,null,null,null," "]
["Navn","Klubb","Team","Sum"]
["Marte Pauline Skinnes","Ivrig IL","Flying-Team Vikersund",{"$f":"SUM(E3:S3)","v":0}]
["Silje Karlengen","Heradsbygda IL","Flying-Team Vikersund",{"$f":"SUM(E4:S4)","v":0}]
["Karoline Andrea Røstad","Skogn IL","Trønderhopp",{"$f":"SUM(E5:S5)","v":0}]
["Mari Backe","Vikersund IF","Lillehammerhopp",{"$f":"SUM(E6:S6)","v":0}]

{"sheet":"Damer C","index":3,"n_rows":3,"n_cols":4,"rows_kept":3,"cut":false,"hidden":false,"merged":[]}
["BUFF NC  DAMER C"]
["Navn","Klubb","Team","Sum"]
["Anikken Mork","Ready"," ",{"$f":"SUM(E3:E3)","v":0}]

{"sheet":"Herrer A","index":4,"n_rows":60,"n_cols":18,"rows_kept":60,"cut":false,"hidden":false,"merged":[]}
["BUFF NC  HERRER A  ",null,null,null,"Sum","Vikersund 30.11","Vikerund 01.12","Lysgårdsbakken 04.01","Lysgårdsbakken 05.01","Granåsen 11.01","Granåsen 12.01","NC Sprova 1  26.01","NC Sprova 2  26.01","NC Lønnberget 08.02","NC Lønnberget 09.02","Granåsen 15.02","Holmenkollen 01.03.01","Holmenkollen 01.03.02"]
["Jørgen Madsen",1994,"Skimt IL","Kollenhopp",{"$f":"SUM(F2:U2)","v":633},14,40,29,100,14,36,null,null,80,80,60,80,100]
["Andreas Thyholt Henriksen",1994,"Skatval Skilag","Trønderhopp",618,null,null,80,50,100,80,50,26,60,32,null,60,80]
["Joacim Ødegård Bjøreng",1995,"Røykenhopp","Flying Team Vikersund",484,7,29,26,32,22,32,80,60,36,60,null,40,60]
["Lars Brodshaug Berger",1995,"Eidsvold Værks SK","NTG",464,13,26,40,24,50,50,40,100,40,36,45]
["Joakim Aune",1993,"Byåsen IL","Trønderhopp",454,26,80,null,80,null,null,null,null,60,100,32,26,50]
["Bendik Netland Hulløen",1996,"Oddersjå SSK","NTG",449,12,12,0,60,80,22,100,32,45,24,20,20,22]
["Sondre Vestøl Bråtane",1996,"Songe Skiklubb","Trønderhopp",389,29,36,32,40,40,60,32,40,null,null,80]
["Andreas Myhre Hellerud",1992,"Magnor UL","Lillehammerhopp",370,36,14,20,14,14,26,15,36,26,50,24,50,45]
["Halvor Egner Granerud",1996,"Asker Skiklubb","Kollenhopp",366,100,22,45,36,null,null,null,null,13,50,100]
["Kristian Stensgård",1996,"Søre Ål IL","NTG",349,null,26,36,45,60,40,45,32,15,null,50]
["Are Sumstad",1996,"Lom IL","NTG",348,10,20,18,11,36,15,60,80,29,29,40]
["Rishi Vellupillai",1997,"Liabygda IL","NTG",312,24,11,16,16,36,29,24,45,32,50,29]
["Robin Pedersen",1996,"Stålkameratene IL","Trønderhopp",246,60,60,100,26]
["Idar Marø",1995,"Alta IF","NTG",222,36,5,14,20,12,12,null,null,24,13,18,36,32]
["Alexander Henningsen",1994,"Tromsø Skiklub"," NTG",219,50,36,13,22,10,4,12,22,12,16,22]
["Knut Jokerud Strand",1996,"Vikersund IF","Flying Team Vikersund",219,null,null,null,null,20,24,29,50,null,null,15,45,36]
["Peder Nævestad Pedersen",1995,"Byaasen Skiklubb","Trønderhopp",204,null,null,null,null,29,45,36,20,null,null,36,18,20]
["Kristoffer Sørli",1993,"Tolga IL","Trønderhopp",200,18,13,12,5,45,13,18,16,7,24,null,16,13]
["Mathis Rebne Stenseth",1995,"Furnes Skiløperforening","NTG",179,null,null,50,29,null,null,null,null,100]
["Christian Inngjerdingen",1996,"Øvrevoll Hole IL","Kollenhopp",168,16,6,7,6,15,18,26,18,5,12,1,14,24]
["Jonas Sandell",1995,"Tromsø Skiklub","Trønderhopp",159,80,null,22,13,24,20]
["Richard Haukedal",1996,"Bækkelaget Skiklubb","Kollenhopp",155,null,null,9,12,10,10,13,14,10,10,14,24,29]
["Jonas Øvregård Schøien",1994,"Vålerenga Ski","Kollenhopp",151,22,15,11,18,null,null,null,null,null,null,13,32,40]
["Klaus Ovlien Engen ",1992,"Aurskog/Finstadbru","Kollenhopp",150,40,50,60,0]
["Jonas Gropen Søgård",null,"Nordbygda/Løten Ski","NTG",145,45,100]
["Tord Markussen Hammer",1988,"Tromsø Skiklub","Trønderhopp",126,null,null,null,null,26,100]
["Adrian Sørensen Livelten",1994,"IL Hjelset-Fram","Lillehammerhopp",119,4,4,6,10,6,7,22,24,12,20,4]
["Jostein Loe",1994,"Raufoss IL","NTG",112,12,10,5,8,11,11,null,null,null,7,8,22,18]
["Jakob Tjåland Randen",1996,"Folldal IL","NTG",102,null,null,null,null,16,16,16,15,14,9,16]
["Jarl Magnus Riiber",1997,"Heming IL","Kollenhopp",100,null,null,null,null,null,null,null,null,null,null,null,100]
["Jens Schøien Øvregård",1996,"Vålerenga Ski","Kollenhopp",97,1,null,3,9,4,5,null,null,3,15,2,29,26]
["Andreas Hoff",1993,"Raufoss IL","Lillehammerhopp",91,9,8,8,0,7,3,20,13,8,5,10]
["Sondre Myhre",1993,"Raufoss IL","Lillehammerhopp",{"$f":"SUM(F34:U34)","v":75},15,18,10,15,8,9]
["Kristian Lian",1994,"Ivrig IL","Lillehammerhopp",70,null,null,null,null,5,6,14,12,16,14,3]
["Jonas Langgård",1993,"Hurdal IL","Lillehammerhopp",68,null,3,0,2,null,null,null,null,22,29,12]
["Christian Brenna",1995,"Hakadal IL","Kollenhopp",59,null,null,4,0,null,null,null,null,10,11,7,12,15]
["Edvart Myrvang Bakke",1996,"Hedalen IL","Flying Team Vikersund",57,5,1,15,4,18,14]
["Tor Kristian Haug",1991,"Byåsen IL","Trønderhopp",50,null,null,null,null,null,null,null,null,6,8,9,13,14]
["Oscar Alexander Hafslund",1997,"Nordbygda/Løten Ski","NTG",49,null,null,null,null,null,null,null,null,20,18,11]
["Christian Corody",1993,"IL Jardar","Kollenhopp",49,null,null,null,null,3,8,null,null,2,null,5,15,16]
["Leif Marius Hagemoen",1995,"Gausdal Skilag","NTG",47,8,7,24,8]
["Ole Mathis Nedrejord",1996,"Nordlys IL","NTG",45,null,45]
["Andreas Buskum",1996,"Raufoss IL","NTG",36,20,16]
["Stian Danielen",1996,"Alta IF","Trønderhopp",35,2,9,null,null,null,null,null,null,18,null,6]
["Marius Lindvik",1998,"Rælingen Skiklubb"," ",26,null,null,null,null,null,null,null,null,null,null,26]
["Magnus Ihle",1997,"IL Jardar","Kollenhopp",11,6,null,2,3]
["Kjell Andreas Næsvold",1996,"Røykenhopp","Flying Team Vikersund",10,null,null,null,null,null,null,null,null,4,6]
["Steffen Jeremiassen",1997,"Skimt IL","Kollenhopp",6,2,2,1,1]
["Hans Petter Bergquist",1994,"Aurskog/Finstadbru","Kollenhopp",0]
["Sindre Ure Søtvik",null,"Eldar IL","Lillehammer NC",0]
["Audun Hokholt",null,"Skimt IL","Kollenhopp",0]
["Harald Jonas Riiber",1995,"Heming IL","Kollenhopp",0]
["Espen Alexander Eriksen",1994,"Tromsø Skiklub","Trønderhopp",0]
["Espen Andersen",null,"Lommedalen IL","Lillehammer NC",0]
["Øystein Granbu Lien",null,"Gausdal Skilag"," ",0]
["Hans Erik Lie Torgersen",1991,"Søre Ål IL","Lillehammerhopp",0]
["Ole-Fredrik Gyth-Dehli",1992,"Botne Skiklubb","Lillehammerhopp",0]
["Lorentz Fannemel",1994,"Hornindal IL","NTG",0]
["Fredrik Aalien",1993,"Eggedal IL","Flying Team Vikersund",0]

{"sheet":"Herrer C","index":5,"n_rows":46,"n_cols":11,"rows_kept":46,"cut":false,"hidden":false,"merged":[]}
["BUFF NC  HERRER C  "]
["Navn","Klubb","Team",null,"Sum","Gjerpenkollen 21.09","Gjerpenkollen 22.09","NC Lierberget 25.01","NC Lønnberget 08.02","NC Lønnberget 09.02","Granåsen 15.02"]
["Fredrik Berger","Røykenhopp"," ",1977,{"$f":"SUM(F3:OA3)","v":200},100,100]
["Oddgeir Heimdahl","Raufoss IL"," ",1979,180,null,null,null,80,100]
["Anders Bechmann","Gjerpenkollen HK"," ",null,160,80,80]
["Geir Rune Lislegaard","Skoppum IL"," ",1963,140,null,null,null,60,80]
["Egil Lunde","Røykenhopp",null,null,105,45,60]
["Lars Andreas Slåttsveen","Kolbukameratene"," ",1991,105,null,null,null,45,60]
["Pål Markus  Kalleberg","Østre Aker Skiklubb","Veteranhopp Norge",null,100,50,50]
["Oscar Alexander Hafslund","Nordbygda/Løten ski","NTG",1997,100,null,null,100]
["Stian Tillung","Vargar IL"," ",1990,100,null,null,null,100]
["Bjørn Iver Restad","IL Leik","Trønderhopp",1993,100,null,null,null,null,null,100]
["Ove Fredheim","Hafslo IL",null,1964,86,null,null,null,36,50]
["Jørgen Bjerke Skatvedt","Trøgstad SK"," ",null,81,36,45]
["Mats Bjerke Myhren","Søre Ål IL","NTG",1997,80,null,null,80]
["Sivert Grande","Steinkjer Skiklubb","Trønderhopp",1996,80,null,null,null,null,null,80]
["Tom Gullbekk","Røykenhopp",null,null,60,60]
["Idar Marø","Alta IF","NTG",1995,60,null,null,60]
["Håvard Smeland","Vegårdshei IL","Trønderhopp",null,60,null,null,null,null,null,60]
["Jørgen Vedal","Rælingen Skiklubb","NTG",1997,50,null,null,50]
["Knut Bjerke","Rælingen Skiklubb","Veteranhopp Norge",1961,50,null,null,null,50]
["Andreas Varsi Breivik","Tromsø Skiklub",null,1997,50,null,null,null,null,null,50]
["Erlend Flotten","Tormod Skilag","NTG",1996,45,null,null,45]
["Sander Fjorden Gjesdahl","Byåsen IL","Trønderhopp",1997,45,null,null,null,null,null,45]
["Per Espen Andersen","Øyestad IF","Sørlandshopp",null,40,40]
["Audun Markeng","Furnes Skiløperforening","Hedmarkhopp",1997,40,null,null,40]
["Olav Hage","Åsmarka IL","Veteranhopp Norge",1955,40,null,null,null,40]
["Ole Dybvad Alstad","Skatval Skilag","Team N.Tr.lag",1995,40,null,null,null,null,null,40]
["Brede Fannemel","Hornindal IL","NTG",1996,36,null,null,36]
["Håkon Leirvaag","Botne SK","NTG",1997,32,null,null,32]
["Markus Bukkholm","Oddersjå SSK","NTG",null,29,null,null,29]
["Ole Anders Skatvedt","Trøgstad SK",null,null,0]
["Torry Ringkilen","Skimt IL","Veteranhopp Norge",null,0]
["Arne Jørgensen","Horten Skiklubb","Veteranhopp Norge",null,0]
["Ingebrigt Sørbø","Gjerstad IL","Kollenhopp",null,0]
["Olav Haugen Hasdal","Gjerstad IL","Sørlandshopp",null,0]
["Egil Ilestad","Botne SK",null,1994,0]
["Petter Tenstad","Kongsberg IF"," ",null,0]
["Jon Værås","Rollag og Veggli",null,null,0]
["Øyvind Villesvik","Horten Skiklubb","Veteranhopp Norge",null,0]
["Håkon Lundby","Kolbukameratene"," ",null,0]
["Anders Knapstad","IL Ivrig","Flying-Team Vikersund",null,0]
["Geir Vethe","Bulken IL",null,null,0]
["Stein Arne Hoel","Østre Aker Skiklubb","Veteranhopp Norge",null,0]
["Pål Teodor Hansen","Rognan IL","Trønderhopp",null,0,null,null,null,null,null," "]
["Mats Jakob Kvernmo","Steinkjer Skiklubb","Trønderhopp",null,0]

{"sheet":"Herrer B","index":6,"n_rows":90,"n_cols":18,"rows_kept":90,"cut":false,"hidden":false,"merged":[]}
["BUFF NC Herrer B ",null,null,null,"Sum","Vikersund 30.11","Vikerund 01.12","Lysgårdsbakken 04.01","Lysgårdsbakken 05.01","Granåsen 11.01","Granåsen 12.01","NC Sprova 1  26.01","NC Sprova 2  26.01","NC Lønnberget 08.02","NC Lønnberget 09.02","Granåsen 15.02","Holmenkollen 01.03.01","Holmenkollen 01.03.02"]
["Marius Lindvik",1998,"Rælingen Skiklubb","Kollenhopp",{"$f":"SUM(F2:R2)","v":483},24,50,80,100,40,100,null,null,60,29]
["Kjell Andreas Næsvold",1996,"Røykenhopp","Flying Team Vikersund",428,36,24,40,40,60,29,29,80,null,null,null,45,45]
["Leif Marius Hagemoen",1995,"Gausdal Skilag","Lillehammerhopp",380,null,null,null,null,null,null,null,null,100,100,null,100,80]
["Ola Walle Østlie",1995,"Nordbygda/Løten ski","Hedmarkhopp",376,20,16,45,50,45,26,null,null,16,36,26,60,36]
["Mats Bjerke Myhren",1997,"Søre Ål IL","NTG",374,14,13,20,15,50,32,null,null,80,14,36,50,50]
["Peder Nævestad Pedersen",1995,"Byåsen Skiklub","Trønderhopp",360,100,80,100,80]
["Oscar Alexander Hafslund",1997,"Nordbygda/Løten ski","NTG",335,45,40,60,60,80,50]
["Sindre Beite Melnes",1995,"Blaker IL","NTG",307,26,26,32,24,26,18,null,null,26,14,29,26,60]
["Oscar P Westerheim",1996,"Bækkelaget Skiklubb","Kollenhopp",289,null,null,null,null,3,13,null,null,11,32,50,80,100]
["Tormod Svorkdal",1994,"Orkdal IL","Trønderhopp",280,null,null,null,null,null,null,60,60,36,26,45,29,24]
["Sondre Ringen",1996,"Bækkelaget Skiklubb","Kollenhopp",252,60,32,18,20,9,45,32,36]
["Christian Brenna",1995,"Hakadal IL","Kollenhopp",222,null,null,null,null,36,6,80,100]
["Kristian Lian",1994,"Ivrig IL","NTG",216,80,100,null,36]
["Tor Kristian Haug",1991,"Byåsen IL","Trønderhopp",210,null,null,29,29,36,36,40,40]
["Kenneth Henningsmo Fredheim",1997,"Nansen IL","Trønderhopp",206,15,14,null,null,null,null,16,45,12,24,80]
["Jens Fredrik Loe",1996,"Byåsen IL","Trønderhopp",198,null,null,null,null,29,11,50,24,10,50,24]
["Magnus Ihle",1997,"IL Jardar","Kollenhopp",198,null,null,null,null,null,null,null,null,26,40,60,32,40]
["Jakob Tjåland Randen",1996,"Folldal IF","NTG",192,50,60,50,32]
["Lars Erik Eriksen",1994,"Rognan IL","Granåsen Skiteam",180,null,null,null,null,100,80]
["Carl Henning Lippestad",1998,"Bækkelaget Skiklubb","Kollenhopp",180,29,36,24,26,11,14,null,null,40]
["Oliver Dahl",1997,"Byåsen IL","Trønderhopp",177,null,null,null,null,null,null,18,22,15,22,100]
["Espen Alexander Eriksen",1994,"Tromsø Skiklub","Trønderhopp",159,16,22,22,22,22,40,null,15]
["Christian Korody",1993,"IL Jardar","Kollenhopp",158,32,45,36,45]
["Anders Knapstad",1996,"Ivrig IL","Flying Team Vikersund",155,40,20,26,18,10,15,14,12]
["Jonas Langgård",1993,"Hurdal IL","Lillehammerhopp",155,null,null,null,null,26,60,null,null,null,null,null,40,29]
["Morten Pettersen",1995,"Byåsen IL","Trønderhopp",154,null,null,null,null,18,22,36,29,13,18,18]
["Håvar Svingen Lunnan",1996,"Skatval Skilag","Trønderhopp",154,null,null,null,null,15,16,45,32,8,6,32]
["Stian Danielsen",null,"Alta IL","Trønderhopp",150,null,null,null,null,null,null,100,50]
["Jørgen Vedal",1997,"Rælingen Skiklubb","NTG",147,null,null,null,16,16,12,null,null,null,45,22,36]
["Erlend Flotten",1996,"Tormod Skilag","NTG",146,22,29,12,null,null,null,null,null,9,3,15,24,32]
["Oskar Bærheim Johansen",1996,"Lensbygda Sportsklubb","Trønderhopp",145,null,null,null,null,4,20,26,26,14,15,40]
["Jesper Ødegård",1998,"Gausdal Skilag",null,105,null,null,null,null,null,null,null,null,45,60]
["Jonas Viken",1997,"Steinkjer Skiklubb","Trønderhopp",{"$f":"SUM(F34:R34)","v":92},6,18,null,null,2,24,12,14,null,null,16]
["Borgar Aas-Torkilden",1996,"Vålerenga Ski","Kollenhopp",92,10,null,14,12,null,null,null,null,5,null,11,18,22]
["Steffen Jeremiassen",1997,"Skimt IL","Kollenhopp",88,null,null,null,null,20,9,null,null,1,5,13,20,20]
["Nikolai Aasberg",1998,"Røykenhopp","Flying Team Vikersund",80,null,null,null,null,null,null,null,null,null,80]
["August Elvevold",1996,"Tromsø Skiklub","Trønderhopp",77,null,null,null,null,13,10,24,16,null,null,14]
["Brede Fannemel",1996,"Hornindal IL","NTG",75,11,11,15,10,null,null,null,null,null,1,null,12,15]
["Bjørnar Kristiansen Malm",1995,"Byåsen IL","Trønderhopp",72,null,null,null,null,12,8,22,18,null,null,12]
["Knut Bjerke",1961,"Rælingen Skiklubb"," ",65,9,9,13,null,null,null,null,null,null,null,null,16,18]
["Ole Andreas Skatvedt",1965,"Trøgstad Skiklubb"," ",61,null,null,null,13,null,null,null,null,null,null,null,22,26]
["Kristoffer Pedersen",1992,"Stålkameratene IL","Trønderhopp",60,null,null,null,null,null,null,20,20,null,null,20]
["Jørgen Oliver Strøm",2000,"Alta IL","Hedmarkhopp",58,null,null,null,null,null,null,null,null,50,8]
["Markus Bukkholm",null,"Oddersjå SSK","NTG",57,7,7,11,9,null,null,null,null,null,null,null,11,12]
["Espen Olsby",1994,"Lensbygda Sportsklubb",null,53,13,10,16,14]
["Ole Henning Holt",1967,"Sannidal IL"," ",47,null,null,10,11,null,null,null,null,null,null,null,13,13]
["Anders Ladehaug",1999,"Nordre Land IL"," ",46,null,null,null,null,null,null,null,null,32,14]
["Mats Jakob Kvernmo",1996,"Steinkjer Skiklubb","Trønderhopp",45,null,null,null,null,7,7,13,9,null,null,9]
["Anders Bechmann",1972,"Gjerpenkollen Hoppklubb",null,43,null,null,null,null,null,null,6,6,null,null,null,15,16]
["Jonas Bratlien",1999,"Bøverbru IL"," ",40,null,null,null,null,null,null,null,null,22,18]
["Fredrik Eirinsønn Villumstad",null,"Skimt IL","Kollenhopp",35,20,15]
["Anders Bredesen Garberg",1997,"Orkdal IL","Trønderhopp",34,null,null,null,null,null,null,11,13,null,null,10]
["Morten Øgar Rastad",1988,"Hurdal IL"," ",32,null,null,null,null,null,null,null,null,32]
["Leif Torbjørn Næsvold",1998,"Røykenhopp","Flying Team Vikersund",29,null,null,null,null,null,null,null,null,20,9]
["Geir Vethe",1977,"Bulken IL"," ",28,null,null,null,null,null,null,null,null,null,null,null,14,14]
["Bjørn Iver Restad",1993,"IL Leik","Trønderhopp",26,null,null,null,null,null,null,15,11]
["Thomas Aasen Markeng",2000,"Lensbygda Sportsklubb","Lillehammer Hopprekrutt",26,null,null,null,null,null,null,null,null,6,20]
["Matias Braathen",1996,"Øvrevoll/Hosle IL","Kollenhopp",24,12,12]
["Martin Wohlen",1997,"Steinkjer Skiklubb","Trønderhopp",23,null,null,null,null,null,null,8,7,null,null,8]
["Sander Fjorden Gjesdal",1997,"Byåsen IL","Team Sør-Tr.lag",20,null,null,null,null,null,null,10,10]
["Sondre Johannes Rodahl",1994,"Lommedalen IL","Kollenhopp",18,null,null,null,null,null,null,null,null,18]
["Sivert Grande",1996,"Steinkjer Skiklubb","Trønderhopp",17,null,null,null,null,null,null,9,8]
["Haakon Norseng",1993,"Ivrig IL",null,16,8,8]
["Anders Krog",1993,"Høydalsmo IL","Granåsen Skiteam",14,null,null,null,null,14]
["Sander Kleven",null,"Gjerpenkollen Hoppklubb","Flying Team Vikersund",{"$f":"SUM(F66:R66)","v":13},null,null,null,null,null,null,null,null,3,10]
["Anders S Haare",1999,"Vikersund IF","Flying Team Vikersund",13,null,null,null,null,null,null,null,null,2,11]
["Ole Dybwad Alstad",1995,"Skatval Skilag",null,12,null,null,null,null,null,null,7,5]
["Lars Ringstad",null,"Skogn IL","Granåsen Skiteam",8,null,null,null,null,8]
["Marku Månum",1998,"Raufoss IL",null,8,null,null,null,null,null,null,null,null,4,4]
["Audun Markeng",1997,"Furnes Skiløperforening","Hedmarkhopp",7,null,null,null,null,null,null,null,null,7]
["Sverre Aas Myhr",1998,"Søre Ål IL"," ",7,null,null,null,null,null,null,null,null,null,7]
["Sjur Hovdal Børve",1995,"Snøhetta IL","Granåsen Skiteam",6,null,null,null,null,6]
["Ragnar Hansen",null,"Byåsen IL","Granåsen Skiteam",5,null,null,null,null,5]
["Martin Røise Sommerstad",1998,"Raufoss IL"," ",2,null,null,null,null,null,null,null,null,null,2]
["Fredrik Andrè Strøm",1996,"Alta IL","NTG",0,null,null,null,null,null,null,null,null," "]
["Jens Schøien Øvregård",1996,"Vålerenga Ski","Kollenhopp",0]
["Edvart Myrvang Bakke",1996,"Hedalen IL","Flying Team Vikersund",0]
["Sondre Scheie",1993,"Bulken IL","Lillehammerhopp",0]
["Kristian Stensgård",1996,"Søre Ål IL","NTG",0]
["Håkon Leirvaag",null,"Botne SK","NTG",0]
["Richard Haukedal",1996,"Bækkelaget Skiklubb","Kollenhopp",0]
["Joacim Ødegård Bjøreng",1995,"Røykenhopp","Flying Team Vikersund",0]
["Christian Inngjerdingen",1996,"Øvrevoll/Hosle IL","Kollenhopp",0]
["Bendik Netland Hulløen",1996,"Oddersjå SSK","NTG",0]
["Fredrik Aalien",1993,"Eggedal IL","Flying Team Vikersund",0]
["Eivind Østlund Ruud",1994,"Røykenhopp","Flying Team Vikersund",0]
["Rishi Vellupillai",1997,"Liabygda IL",null,0]
["Rolf Ole Sommrstad",null,"Kolbukameratene","Lillehammerhopp",0]
["Sondre Håland",1995,"Øyestad IF","Sørlandshopp",0]